bitfinex/quotes_SOLUSD_20260217
["timestamp","ask_amount","ask_price","bid_price","bid_amount"]
[1771341647208,8.2107984,83.73,83.697,11.94785954]
[1771341647385,7.33024725,83.73,83.698,0.88525793]
[1771341647586,7.33024725,83.73,83.645,47.82109652]
[1771341647587,0.88055115,83.709,83.672,0.88525793]
[1771341647897,0.88055115,83.709,83.681,11.95014399]
[1771341648201,8.2107984,83.72,83.681,11.95014399]
[1771341648406,21.3907984,83.72,83.681,11.95014399]
[1771341648603,0.88055115,83.719,83.68,7.53024725]
[1771341648822,7.33024725,83.7,83.68,0.2]
[1771341648999,0.88055115,83.707,83.68,12.15028496]
[1771341649302,13.18,83.72,83.68,12.15028496]
[1771341649303,0.88055115,83.718,83.681,0.88525793]
[1771341649609,0.88055115,83.731,83.691,0.88525793]
[1771341649780,11.94186699,83.739,83.701,0.88525793]
[1771341650308,7.33024725,83.74,83.701,0.88525793]
[1771341650483,7.33024725,83.75,83.711,0.88525793]
[1771341650682,19.27057933,83.75,83.711,0.88525793]
[1771341650883,7.33024725,83.74,83.71,7.33024725]
[1771341651081,0.88055115,83.749,83.711,0.88525793]
[1771341651285,11.94058365,83.748,83.711,0.88525793]
[1771341651785,0.88055115,83.748,83.711,0.88525793]
[1771341652183,0.88055115,83.759,83.721,0.88525793]
[1771341652511,7.33024725,83.77,83.74,8.21185739]
[1771341652706,13.18,83.777,83.74,8.21185739]
[1771341652889,0.91123239,83.745,83.67,0.2]
[1771341653211,7.33024725,83.68,83.642,0.88161014]
[1771341653404,7.33024725,83.67,83.642,0.88161014]
[1771341653611,13.18,83.681,83.65,7.33024725]
[1771341653789,13.18,83.681,83.641,41.84550638]
[1771341653790,0.91123239,83.697,83.661,0.88161014]
[1771341654311,7.33024725,83.7,83.661,0.88161014]
[1771341654623,7.33024725,83.7,83.641,41.84550638]
[1771341654624,7.33024725,83.73,83.691,0.88161014]
[1771341654782,7.33024725,83.72,83.68,7.33024725]
[1771341655097,7.33024725,83.7,83.671,11.95157222]
[1771341655810,7.33024725,83.71,83.671,41.83050279]
[1771341656101,7.33024725,83.7,83.671,11.95157222]
[1771341656305,8.24147964,83.7,83.671,11.95157222]
[1771341656495,0.91123239,83.689,83.651,0.88161014]
[1771341656993,0.91123239,83.689,83.65,7.33024725]
[1771341657184,20.51024725,83.7,83.661,0.88161014]
[1771341657605,7.33024725,83.7,83.661,0.88161014]
[1771341657909,7.33024725,83.7,83.671,0.88161014]
[1771341658589,0.91123239,83.707,83.671,0.88161014]
[1771341659007,7.33024725,83.71,83.673,0.88161014]
[1771341659307,7.33024725,83.71,83.681,0.88161014]
[1771341659516,7.33024725,83.72,83.681,0.88161014]
[1771341659894,7.33024725,83.71,83.681,0.88161014]
[1771341660105,7.33024725,83.71,83.672,41.83000286]
[1771341660290,7.33024725,83.71,83.673,0.88161014]
[1771341660601,7.33024725,83.71,83.618,47.83650429]
[1771341660602,7.33024725,83.68,83.651,11.95442971]
[1771341661012,7.33024725,83.69,83.652,0.88161014]
[1771341661319,13.18,83.718,83.681,0.88161014]
[1771341661616,13.18,83.723,83.691,0.88161014]
[1771341661906,7.33024725,83.73,83.691,0.88161014]
[1771341663013,7.33024725,83.72,83.691,0.88161014]
[1771341663193,7.33024725,83.72,83.692,11.94857334]
[1771341664711,7.33024725,83.72,83.691,0.88161014]
[1771341665025,7.33024725,83.71,83.678,0.88161014]
[1771341665228,0.91123239,83.709,83.67,20.51024725]
[1771341665524,7.33024725,83.69,83.651,0.88161014]
[1771341666217,0.91123239,83.689,83.651,0.88161014]
[1771341666420,4.61729252,83.718,83.565,35.88]
[1771341666421,8.24147964,83.68,83.64,8.41185739]
[1771341666628,0.91123239,83.679,83.64,8.41185739]
[1771341666819,0.91123239,83.679,83.641,0.88161014]
[1771341667002,7.33024725,83.68,83.65,7.33024725]
[1771341667201,7.33024725,83.66,83.631,0.88161014]
[1771341667412,7.33024725,83.68,83.641,0.88161014]
[1771341667701,7.33024725,83.68,83.622,13.18]
[1771341667702,7.33024725,83.69,83.651,0.88161014]
[1771341667903,13.18,83.692,83.661,0.88161014]
[1771341668313,7.33024725,83.71,83.671,0.88161014]
[1771341669636,7.33024725,83.69,83.66,8.21185739]
[1771341669924,7.33024725,83.69,83.6,7.33024725]
[1771341669925,7.33024725,83.68,83.65,7.33024725]
[1771341670123,7.33024725,83.68,83.648,0.88161014]
[1771341670502,7.33024725,83.68,83.65,7.33024725]
[1771341670710,7.33024725,83.69,83.651,0.88161014]
[1771341670905,7.33024725,83.69,83.6,7.33024725]
[1771341670906,0.91123239,83.659,83.611,0.88161014]
[1771341671106,7.33024725,83.64,83.601,0.88161014]
[1771341671511,7.33024725,83.66,83.621,0.88161014]
[1771341671722,8.24147964,83.66,83.587,4.61729252]
[1771341671908,7.33024725,83.65,83.61,7.33024725]
[1771341672109,7.33024725,83.65,83.62,7.33024725]
[1771341672304,0.91123239,83.683,83.62,7.33024725]
[1771341672521,7.33024725,83.67,83.63,7.33024725]
[1771341672725,0.91123239,83.669,83.611,13.18]
[1771341673029,7.33024725,83.66,83.62,7.33024725]
[1771341673408,0.91123239,83.649,83.61,7.33024725]
[1771341673608,7.33024725,83.64,83.61,7.33024725]
[1771341674018,7.33024725,83.64,83.6,8.21185739]
[1771341674238,7.33024725,83.64,83.61,7.33024725]
[1771341674536,7.33024725,83.63,83.6,1.07389268]
[1771341674825,1.07795769,83.639,83.6,1.07389268]
[1771341675030,1.07795769,83.629,83.59,8.40413993]
[1771341676111,7.33024725,83.63,83.573,13.18]
[1771341676112,7.33024725,83.64,83.601,1.07389268]
[1771341676329,7.33024725,83.64,83.61,7.33024725]
[1771341676637,7.33024725,83.65,83.611,1.07389268]
[1771341676812,7.33024725,83.64,83.611,1.07389268]
[1771341677337,8.40820494,83.64,83.6,8.40413993]
[1771341677516,1.07795769,83.629,83.591,1.07389268]
[1771341677716,8.40820494,83.64,83.601,1.07389268]
[1771341678327,7.33024725,83.64,83.61,7.33024725]
[1771341679027,7.33024725,83.64,83.601,1.07389268]
[1771341679203,7.33024725,83.61,83.58,8.40413993]
[1771341679407,1.07795769,83.619,83.58,8.40413993]
[1771341679608,1.07795769,83.619,83.58,7.33024725]
[1771341679820,7.33024725,83.63,83.591,1.07389268]
[1771341680029,1.07795769,83.629,83.591,1.07389268]
[1771341680813,7.37157764,83.62,83.591,1.07389268]
[1771341681015,7.37157764,83.63,83.591,1.07389268]
[1771341682031,8.44953533,83.64,83.601,1.07389268]
[1771341682211,8.44953533,83.64,83.562,4.61729252]
[1771341682212,7.37157764,83.63,83.591,1.07389268]
[1771341682527,1.07795769,83.619,83.581,1.07389268]
[1771341683229,7.37157764,83.61,83.581,1.07389268]
[1771341683426,1.07795769,83.619,83.581,1.07389268]
[1771341684733,1.07795769,83.619,83.546,6.25601553]
[1771341684734,1.07795769,83.599,83.562,1.07389268]
[1771341684912,7.37157764,83.59,83.562,1.07389268]
[1771341685113,8.44953533,83.59,83.55,1.27389268]
[1771341685316,8.44953533,83.6,83.56,8.44547032]
[1771341685531,7.37157764,83.6,83.57,7.57157764]
[1771341685717,7.37157764,83.59,83.551,1.10095106]
[1771341685922,7.37157764,83.59,83.561,1.10095106]
[1771341686521,7.37157764,83.58,83.55,1.30095106]
[1771341686926,7.37157764,83.57,83.55,1.30095106]
[1771341687434,7.37157764,83.57,83.55,0.2]
[1771341687636,7.37157764,83.56,83.52,0.2]
[1771341687939,7.37157764,83.55,83.52,0.2]
[1771341688114,7.37157764,83.56,83.52,8.6725287]
[1771341688317,7.37157764,83.55,83.521,1.10095106]
[1771341688522,7.37157764,83.54,83.521,1.10095106]
[1771341688733,7.37157764,83.53,83.49,7.57157764]
[1771341689121,7.37157764,83.53,83.5,7.37157764]
[1771341689324,7.37157764,83.53,83.49,7.57157764]
[1771341689621,7.37157764,83.52,83.49,0.2]
[1771341690331,7.37157764,83.51,83.49,0.2]
[1771341690635,7.37157764,83.51,83.41,0.2]
[1771341690636,7.37157764,83.5,83.46,7.37157764]
[1771341690848,7.37157764,83.5,83.461,1.07389268]
[1771341691140,7.37157764,83.48,83.451,1.33336048]
[1771341691347,7.37157764,83.5,83.461,1.07389268]
[1771341691839,7.37157764,83.48,83.451,0.2594678]
[1771341692139,1.07795769,83.511,83.471,1.07389268]
[1771341692323,7.37157764,83.51,83.471,1.07389268]
[1771341692519,7.37157764,83.52,83.48,7.37157764]
[1771341692840,7.37157764,83.52,83.491,1.07389268]
[1771341693628,7.37157764,83.53,83.491,1.07389268]
[1771341693834,7.37157764,83.54,83.501,1.07389268]
[1771341694322,1.07795769,83.509,83.451,0.2594678]
[1771341694536,7.37157764,83.47,83.451,0.2594678]
[1771341694938,7.37157764,83.49,83.451,1.33336048]
[1771341695243,7.37157764,83.48,83.451,1.33336048]
[1771341695620,1.07795769,83.489,83.451,1.33336048]
[1771341695821,7.37157764,83.5,83.461,1.07389268]
[1771341696048,7.37157764,83.49,83.461,1.07389268]
[1771341697239,7.37157764,83.5,83.461,1.07389268]
[1771341697641,7.37157764,83.51,83.471,1.07389268]
[1771341697848,1.07795769,83.526,83.481,1.07389268]
[1771341698164,7.37157764,83.52,83.49,8.44547032]
[1771341698530,7.37157764,83.54,83.501,1.07389268]
[1771341698849,7.37157764,83.56,83.52,7.37157764]
[1771341699045,7.37157764,83.57,83.531,1.07389268]
[1771341699271,7.37157764,83.57,83.53,7.37157764]
[1771341699272,1.07795769,83.599,83.55,7.37157764]
[1771341699544,7.37157764,83.59,83.56,7.37157764]
[1771341699749,7.37157764,83.6,83.56,7.37157764]
[1771341699928,7.37157764,83.65,83.522,4.61729252]
[1771341699929,7.37157764,83.61,83.57,8.44547032]
[1771341700124,7.37157764,83.6,83.57,1.07389268]
[1771341700339,7.37157764,83.58,83.541,1.07389268]
[1771341700531,7.37157764,83.59,83.551,1.07389268]
[1771341700732,7.37157764,83.58,83.551,1.07389268]
[1771341701950,7.37157764,83.57,83.538,1.07389268]
[1771341702652,1.07795769,83.588,83.538,1.07389268]
[1771341702653,7.37157764,83.58,83.538,1.07389268]
[1771341702848,7.37157764,83.57,83.501,1.07389268]
[1771341703053,4.61729252,83.587,83.224,66.03188116]
[1771341703054,7.37157764,83.56,83.521,1.07389268]
[1771341703358,7.37157764,83.55,83.521,1.07389268]
[1771341703549,7.37157764,83.58,83.541,1.07389268]
[1771341703858,1.07795769,83.586,83.561,1.07389268]
[1771341704450,1.07795769,83.586,83.525,13.18]
[1771341704451,1.07795769,83.586,83.571,1.13405693]
[1771341704653,7.37157764,83.61,83.533,1.13405693]
[1771341704846,7.37157764,83.61,83.532,4.61729252]
[1771341704847,7.37157764,83.6,83.56,7.37157764]
[1771341705343,7.37157764,83.61,83.571,1.13405693]
[1771341705834,7.37157764,83.61,83.581,1.13405693]
[1771341706035,7.37157764,83.61,83.574,1.13405693]
[1771341706843,7.37157764,83.6,83.574,1.13405693]
[1771341707158,7.37157764,83.61,83.574,1.13405693]
[1771341707357,7.37157764,83.6,83.574,1.13405693]
[1771341707542,7.37157764,83.61,83.574,1.13405693]
[1771341707858,7.37157764,83.62,83.581,1.13405693]
[1771341708656,7.37157764,83.63,83.591,1.13405693]
[1771341708956,13.18,83.653,83.591,1.13405693]
[1771341708957,7.37157764,83.62,83.591,1.13405693]
[1771341709157,7.37157764,83.63,83.591,1.13405693]
[1771341709350,7.37157764,83.65,83.611,1.13405693]
[1771341709550,1.11363719,83.658,83.611,1.13405693]
[1771341709751,7.37157764,83.65,83.611,1.13405693]
[1771341710149,7.37157764,83.64,83.611,1.13405693]
[1771341710660,7.37157764,83.64,83.601,1.13405693]
[1771341711159,7.37157764,83.63,83.601,1.13405693]
[1771341711460,7.37157764,83.61,83.563,1.13405693]
[1771341711646,7.37157764,83.62,83.581,1.13405693]
[1771341711847,7.37157764,83.63,83.591,1.13405693]
[1771341712962,7.37157764,83.61,83.581,1.14926393]
[1771341713460,1.13924832,83.62,83.57,7.37157764]
[1771341713461,7.37157764,83.6,83.57,8.52084157]
[1771341713762,7.37157764,83.61,83.571,1.14926393]
[1771341713946,7.37157764,83.62,83.581,1.14926393]
[1771341714149,7.37157764,83.62,83.59,7.37157764]
[1771341714344,7.37157764,83.62,83.591,1.14926393]
[1771341715465,7.37157764,83.61,83.58,1.14926393]
[1771341715764,7.37157764,83.61,83.58,8.52084157]
[1771341715960,7.37157764,83.61,83.58,1.14926393]
[1771341717549,7.37157764,83.6,83.569,1.14926393]
[1771341717761,7.37157764,83.6,83.571,1.14926393]
[1771341718266,7.37157764,83.6,83.561,1.14926393]
[1771341718769,7.37157764,83.59,83.561,1.14926393]
[1771341718957,7.37157764,83.58,83.55,1.14926393]
[1771341719150,7.37157764,83.59,83.551,1.14926393]
[1771341719351,7.37157764,83.6,83.561,1.14926393]
[1771341719558,7.37157764,83.58,83.55,8.52084157]
[1771341719759,7.37157764,83.58,83.54,7.37157764]
[1771341719957,7.37157764,83.58,83.541,1.14926393]
[1771341720390,1.13924832,83.579,83.541,1.14926393]
[1771341720669,7.37157764,83.56,83.531,1.14926393]
[1771341720869,8.51082596,83.57,83.531,1.14926393]
[1771341721062,7.37157764,83.57,83.531,1.14926393]
[1771341721245,7.37157764,83.56,83.531,1.14926393]
[1771341721449,7.37157764,83.54,83.508,1.14926393]
[1771341721751,7.37157764,83.55,83.521,1.14926393]
[1771341721969,7.37157764,83.54,83.509,1.14926393]
[1771341722552,7.37157764,83.53,83.498,1.14926393]
[1771341722752,7.37157764,83.52,83.498,1.14926393]
[1771341723047,7.37157764,83.53,83.498,1.14926393]
[1771341723259,7.37157764,83.53,83.491,1.14926393]
[1771341723465,7.37157764,83.51,83.48,1.14926393]
[1771341723667,7.37157764,83.51,83.48,8.52084157]
[1771341723852,7.37157764,83.51,83.48,1.14926393]
[1771341724266,7.37157764,83.51,83.48,8.52084157]
[1771341724465,7.37157764,83.51,83.48,1.14926393]
[1771341724663,7.37157764,83.51,83.471,1.14926393]
[1771341724861,7.37157764,83.52,83.491,1.14926393]
[1771341725763,7.37157764,83.53,83.491,1.14926393]
[1771341725972,7.37157764,83.54,83.501,1.14926393]
[1771341726358,7.37157764,83.55,83.511,1.14926393]
[1771341726664,1.13924832,83.569,83.531,1.14926393]
[1771341726866,7.37157764,83.56,83.531,1.14926393]
[1771341727066,1.13924832,83.569,83.531,1.14926393]
[1771341727662,7.37157764,83.57,83.541,1.14926393]
[1771341727868,0.31575718,83.941,83.55,7.37157764]
[1771341727869,1.13924832,83.589,83.55,7.37157764]
[1771341728066,7.37157764,83.57,83.541,1.14926393]
[1771341728370,1.13924832,83.606,83.561,1.14926393]
[1771341728575,1.13924832,83.599,83.561,1.14926393]
[1771341728882,7.37157764,83.59,83.561,1.14926393]
[1771341729177,7.37157764,83.61,83.57,8.52084157]
[1771341729375,7.37157764,83.61,83.571,1.14926393]
[1771341729959,7.37157764,83.62,83.581,1.14926393]
[1771341730372,7.37157764,83.63,83.591,1.14926393]
[1771341730581,1.13924832,83.629,83.591,1.14926393]
[1771341731176,7.37157764,83.62,83.581,1.14926393]
[1771341731483,7.37157764,83.62,83.591,1.14926393]
[1771341731683,7.37157764,83.63,83.591,1.14926393]
[1771341731882,7.37157764,83.65,83.611,1.14926393]
[1771341732066,7.37157764,83.64,83.611,1.14926393]
[1771341732586,7.37157764,83.65,83.611,1.14926393]
[1771341733279,7.37157764,83.65,83.582,4.61729252]
[1771341733280,7.37157764,83.66,83.621,1.14926393]
[1771341733661,7.37157764,83.67,83.631,1.14926393]
[1771341733863,7.57157764,83.68,83.641,1.14926393]
[1771341734379,7.57157764,83.68,83.608,13.18]
[1771341734380,0.2,83.68,83.65,8.52084157]
[1771341734583,0.2,83.68,83.65,1.14926393]
[1771341734787,7.57157764,83.68,83.65,1.14926393]
[1771341735469,0.2,83.68,83.65,8.52084157]
[1771341735885,0.2,83.68,83.661,1.1674098]
[1771341736186,7.37157764,83.7,83.661,1.1674098]
[1771341736491,7.37157764,83.73,83.693,1.1674098]
[1771341736680,11.94194404,83.739,83.701,1.1674098]
[1771341737067,7.37157764,83.74,83.701,1.1674098]
[1771341737466,7.37157764,83.73,83.692,11.94857334]
[1771341737985,7.37157764,83.73,83.692,41.82000669]
[1771341738163,7.37157764,83.73,83.7,7.37157764]
[1771341738370,7.37157764,83.72,83.686,1.1674098]
[1771341738684,11.94471983,83.719,83.686,1.1674098]
[1771341738863,11.94471983,83.719,83.653,4.61729252]
[1771341738864,7.37157764,83.71,83.674,1.1674098]
[1771341739185,7.37157764,83.7,83.674,11.95103956]
[1771341739592,1.16981235,83.709,83.674,11.95103956]
[1771341739891,7.35776723,83.7,83.674,11.95103956]
[1771341740384,7.35776723,83.72,83.691,1.1674098]
[1771341740560,1.16981235,83.719,83.674,13.11844936]
[1771341740764,4.61729252,83.737,83.67,7.35776723]
[1771341740765,1.16981235,83.709,83.67,7.35776723]
[1771341740983,7.35776723,83.7,83.669,1.1674098]
[1771341741582,7.35776723,83.69,83.66,11.95314367]
[1771341741787,1.16981235,83.689,83.654,11.95388614]
[1771341742001,7.35776723,83.69,83.655,1.1674098]
[1771341742186,7.35776723,83.69,83.66,7.35776723]
[1771341742391,11.94614677,83.709,83.671,1.1674098]
[1771341742564,7.35776723,83.71,83.671,1.1674098]
[1771341742768,7.35776723,83.72,83.683,1.1674098]
[1771341743379,7.35776723,83.72,83.623,47.83343765]
[1771341743380,7.35776723,83.71,83.677,11.95066099]
[1771341743689,7.35776723,83.71,83.672,11.95134802]
[1771341743886,8.52757958,83.71,83.672,11.95134802]
[1771341744568,1.16981235,83.709,83.672,11.95134802]
[1771341744785,7.35776723,83.69,83.666,11.95222467]
[1771341745368,7.35776723,83.7,83.662,1.1674098]
[1771341745586,1.16981235,83.711,83.671,1.1674098]
[1771341745587,7.35776723,83.71,83.671,1.1674098]
[1771341746179,7.35776723,83.71,83.681,1.1674098]
[1771341746799,7.35776723,83.7,83.67,1.1674098]
[1771341746968,7.35776723,83.69,83.659,1.1674098]
[1771341747172,7.35776723,83.69,83.66,11.95314367]
[1771341747373,7.35776723,83.69,83.655,11.9537519]
[1771341747577,7.35776723,83.68,83.643,11.95549713]
[1771341747885,7.35776723,83.68,83.641,1.1674098]
[1771341748184,7.35776723,83.68,83.64,7.35776723]
[1771341748185,7.35776723,83.69,83.661,1.1674098]
[1771341748372,7.35776723,83.67,83.631,11.95728856]
[1771341748574,7.35776723,83.66,83.626,11.95795409]
[1771341748783,7.35776723,83.66,83.62,37.25456795]
[1771341748784,7.35776723,83.66,83.622,1.1674098]
[1771341749178,11.95328655,83.659,83.622,1.1674098]
[1771341749690,7.35776723,83.65,83.622,1.1674098]
[1771341750085,7.35776723,83.65,83.611,1.1674098]
[1771341750284,7.35776723,83.65,83.612,11.96000574]
[1771341750586,7.35776723,83.65,83.612,13.12741554]
[1771341750786,7.35776723,83.65,83.441,26.38940574]
[1771341750787,7.35776723,83.64,83.605,11.96098901]
[1771341751085,7.35776723,83.64,83.606,1.1674098]
[1771341751279,1.16981235,83.648,83.61,7.35776723]
[1771341751479,7.35776723,83.66,83.621,1.1674098]
[1771341751687,11.9523818,83.666,83.631,1.1674098]
[1771341752392,7.35776723,83.67,83.63,7.35776723]
[1771341752581,7.35776723,83.67,83.631,1.1674098]
[1771341752889,1.16981235,83.668,83.631,1.1674098]
[1771341753290,7.35776723,83.65,83.62,7.35776723]
[1771341753483,8.52757958,83.65,83.61,7.35776723]
[1771341753686,7.35776723,83.64,83.608,11.96057793]
[1771341754077,1.16981235,83.629,83.582,11.96429853]
[1771341754387,7.35776723,83.62,83.583,1.1674098]
[1771341754984,11.95900453,83.619,83.584,11.96401225]
[1771341755177,7.35776723,83.61,83.583,1.1674098]
[1771341755381,7.35776723,83.61,83.516,47.89461995]
[1771341755382,1.16981235,83.599,83.562,11.9671621]
[1771341755977,1.16981235,83.599,83.56,7.35776723]
[1771341756399,7.35776723,83.6,83.562,1.1674098]
[1771341756600,7.35776723,83.6,83.57,7.35776723]
[1771341757172,13.18,83.612,83.581,1.1674098]
[1771341757173,25.14014307,83.612,83.581,1.1674098]
[1771341757479,13.18,83.612,83.581,1.1674098]
[1771341757896,13.18,83.612,83.59,7.35776723]
[1771341758096,13.18,83.612,83.581,1.1674098]
[1771341758492,1.16981235,83.599,83.561,11.96730532]
[1771341758676,7.35776723,83.6,83.563,1.1674098]
[1771341759216,7.35776723,83.59,83.563,1.1674098]
[1771341759576,7.35776723,83.6,83.564,11.96687568]
[1771341759797,7.35776723,83.59,83.55,7.35776723]
[1771341760097,8.52757958,83.59,83.554,11.96819437]
[1771341760307,8.52757958,83.59,83.55,7.35776723]
[1771341760308,7.35776723,83.58,83.535,1.1674098]
[1771341760600,7.35776723,83.56,83.535,1.1674098]
[1771341761508,11.96501429,83.577,83.541,1.1674098]
[1771341761705,7.35776723,83.58,83.541,1.1674098]
[1771341762499,7.35776723,83.57,83.541,1.1674098]
[1771341763393,1.16981235,83.577,83.542,11.97002705]
[1771341763780,13.18,83.589,83.551,1.1674098]
[1771341764180,11.96343972,83.588,83.551,1.1674098]
[1771341764596,11.96229484,83.596,83.551,1.1674098]
[1771341764788,7.35776723,83.59,83.551,1.1674098]
[1771341765299,1.11376681,83.589,83.55,7.35776723]
[1771341765494,13.0800697,83.568,83.53,7.35776723]
[1771341766001,7.35776723,83.55,83.511,1.10092812]
[1771341766502,1.11376681,83.559,83.513,1.10092812]
[1771341766685,7.35776723,83.54,83.502,1.10092812]
[1771341766997,1.11376681,83.549,83.51,7.35776723]
[1771341767203,7.35776723,83.54,83.502,1.10092812]
[1771341767400,7.35776723,83.54,83.51,7.35776723]
[1771341767608,11.97045691,83.539,83.502,14.28092812]
[1771341767904,7.35776723,83.54,83.503,11.97561764]
[1771341768082,19.32819388,83.54,83.503,11.97561764]
[1771341768408,1.11376681,83.549,83.51,8.45869535]
[1771341768612,13.18,83.552,83.521,1.10092812]
[1771341768897,1.11376681,83.56,83.53,8.45869535]
[1771341768898,7.35776723,83.56,83.53,8.45869535]
[1771341769201,7.35776723,83.59,83.551,1.10092812]
[1771341769410,1.11376681,83.589,83.541,1.10092812]
[1771341769596,7.35776723,83.59,83.55,7.35776723]
[1771341769597,1.11376681,83.587,83.55,7.35776723]
[1771341769792,1.11376681,83.58,83.55,7.35776723]
[1771341769974,13.2,83.594,83.542,41.89509468]
[1771341769975,11.96272415,83.593,83.56,7.35776723]
[1771341770178,14.31376681,83.594,83.56,7.35776723]
[1771341770404,26.27643105,83.594,83.56,8.45869535]
[1771341770705,1.11376681,83.593,83.56,7.35776723]
[1771341771012,1.11376681,83.589,83.551,13.2]
[1771341771190,1.11376681,83.589,83.56,7.35776723]
[1771341771585,1.11376681,83.589,83.561,11.96730532]
[1771341771782,11.96343972,83.588,83.561,11.96730532]
[1771341772301,13.09059975,83.588,83.555,11.96808305]
[1771341772602,1.12716003,83.587,83.55,7.35776723]
[1771341772785,1.12716003,83.587,83.551,41.89058179]
[1771341773182,1.12716003,83.587,83.551,11.96873765]
[1771341773588,1.12716003,83.585,83.551,11.96873765]
[1771341773991,1.12716003,83.569,83.531,11.97160335]
[1771341774201,1.12716003,83.559,83.531,11.97160335]
[1771341774400,7.35776723,83.55,83.523,11.97275002]
[1771341774607,1.12716003,83.559,83.523,11.97275002]
[1771341775505,1.12716003,83.559,83.52,7.35776723]
[1771341775506,1.12716003,83.557,83.52,7.35776723]
[1771341775709,1.12716003,83.549,83.52,7.35776723]
[1771341776086,1.12716003,83.549,83.519,11.97329434]
[1771341776282,1.12716003,83.549,83.515,11.97387966]
[1771341776896,11.96773498,83.558,83.521,1.12395014]
[1771341777099,13.2,83.566,83.531,1.12395014]
[1771341777507,7.35776723,83.57,83.54,7.35776723]
[1771341777698,1.12716003,83.581,83.55,7.35776723]
[1771341777894,7.35776723,83.58,83.546,13.2]
[1771341778506,1.12716003,83.579,83.546,13.2]
[1771341779703,1.12716003,83.579,83.55,7.35776723]
[1771341780204,1.12716003,83.579,83.547,41.89258739]
[1771341780205,11.96487113,83.578,83.547,11.96931068]
[1771341780507,1.12716003,83.59,83.56,7.35776723]
[1771341780894,11.96229942,83.596,83.56,8.48171737]
[1771341781206,11.96092148,83.606,83.571,1.12395014]
[1771341781511,1.12716003,83.599,83.565,13.2]
[1771341781686,1.12716003,83.599,83.566,11.96658928]
[1771341781687,1.12716003,83.598,83.566,11.96658928]
[1771341781887,1.12716003,83.624,83.59,7.35776723]
[1771341782088,13.08559251,83.623,83.59,7.35776723]
[1771341782494,1.12716003,83.619,83.588,13.2]
[1771341782896,1.12716003,83.619,83.59,7.35776723]
[1771341783102,1.12716003,83.599,83.566,11.96658928]
[1771341783411,1.12716003,83.599,83.566,25.16658928]
[1771341783714,1.12716003,83.597,83.561,11.96717788]
[1771341783893,1.12716003,83.597,83.547,29.92319841]
[1771341783894,1.12716003,83.589,83.555,13.2]
[1771341784291,1.12716003,83.6,83.561,1.12395014]
[1771341784495,1.12716003,83.6,83.57,7.35776723]
[1771341784808,7.35776723,83.6,83.57,8.48171737]
[1771341785111,1.12716003,83.589,83.553,11.96842683]
[1771341785309,1.12716003,83.589,83.553,25.16842683]
[1771341786398,1.12716003,83.579,83.546,11.96935307]
[1771341786602,1.12716003,83.579,83.542,1.12395014]
[1771341786788,1.12716003,83.579,83.55,7.35776723]
[1771341788019,1.12716003,83.579,83.541,41.89546512]
[1771341788020,1.12716003,83.592,83.56,7.35776723]
[1771341788523,1.12716003,83.612,83.58,7.35776723]
[1771341788697,16.57670085,83.617,83.59,7.35776723]
[1771341788891,13.08569757,83.623,83.59,7.35776723]
[1771341789203,1.12716003,83.634,83.6,7.35776723]
[1771341789517,1.12716003,83.646,83.62,7.35776723]
[1771341789699,1.12716003,83.659,83.62,7.35776723]
[1771341789903,1.12716003,83.656,83.62,7.35776723]
[1771341790300,1.12716003,83.647,83.611,11.96014878]
[1771341790702,1.12716003,83.639,83.61,7.35776723]
[1771341791298,1.12716003,83.639,83.606,1.12395014]
[1771341791521,1.12716003,83.639,83.61,7.35776723]
[1771341791722,1.12716003,83.639,83.601,11.9615794]
[1771341792101,1.12716003,83.639,83.602,1.12395014]
[1771341792505,11.95628781,83.638,83.61,7.35776723]
[1771341792707,1.12716003,83.637,83.6,7.35776723]
[1771341793016,1.12716003,83.619,83.583,11.96410901]
[1771341793213,1.12716003,83.619,83.582,1.12395014]
[1771341793417,7.35776723,83.61,83.574,13.2]
[1771341793628,1.12716003,83.619,83.58,7.35776723]
[1771341793918,8.48492726,83.63,83.59,7.35776723]
[1771341794120,13.2,83.636,83.601,1.12395014]
[1771341794328,13.2,83.636,83.6,7.35776723]
[1771341794329,11.95536046,83.645,83.611,1.15744803]
[1771341794514,11.95442971,83.651,83.621,11.9587185]
[1771341794817,11.95442971,83.651,83.62,19.31660863]
[1771341795005,11.95442971,83.651,83.62,7.35776723]
[1771341795208,11.95442971,83.651,83.621,11.9587185]
[1771341795416,4.61729252,83.666,83.621,11.9587185]
[1771341795417,1.09572697,83.675,83.64,7.35776723]
[1771341795717,1.09572697,83.673,83.64,7.35776723]
[1771341796499,11.95142939,83.672,83.64,19.3137605]
[1771341797102,1.09572697,83.671,83.64,19.3137605]
[1771341797324,11.95088776,83.676,83.64,20.47120853]
[1771341797526,11.95088776,83.676,83.641,1.15744803]
[1771341797702,13.0457555,83.682,83.641,1.15744803]
[1771341797907,1.09572697,83.679,83.65,7.35776723]
[1771341798513,11.95328655,83.659,83.634,13.2]
[1771341798701,7.35776723,83.66,83.634,13.2]
[1771341798907,8.4534942,83.66,83.634,13.2]
[1771341799915,8.46087113,83.66,83.634,13.2]
[1771341800422,1.09572697,83.649,83.611,11.96014878]